[Event "Titled Tuesday Blitz March 21 Late 2023"]
[White "aidenzhouu"]
[Black "Jessel, Stephen"]
[BlackFideId "628859"]
[WhiteElo "2456"]
[BlackElo "2268"]
[Result "1/2-1/2"]
[Round "07"]
[TimeControl "180+2"]
[Date "2023.03.21"]
[WhiteClock "0:00:11"]
[BlackClock "0:00:03"]

1. d4 {[%clk 0:03:00]}  a6 {[%clk 0:02:54]} 2. e4 {[%clk 0:02:57]}  e6 {[%clk 0:02:55]} 3. Nd2 {[%clk 0:02:49]}  d5 {[%clk 0:02:54]} 4. e5 {[%clk 0:02:49]}  Bd7 {[%clk 0:02:48]} 5. f4 {[%clk 0:02:42]}  Nh6 {[%clk 0:02:48]} 6. Ndf3 {[%clk 0:02:40]}  Bb5 {[%clk 0:02:45]} 7. Ne2 {[%clk 0:02:31]}  a5 {[%clk 0:02:43]} 8. Be3 {[%clk 0:02:24]}  Nd7 {[%clk 0:02:31]} 9. h3 {[%clk 0:02:19]}  Nf5 {[%clk 0:02:26]} 10. Bf2 {[%clk 0:02:19]}  h5 {[%clk 0:02:26]} 11. Ng3 {[%clk 0:02:10]}  Nxg3 {[%clk 0:02:17]} 12. Bxg3 {[%clk 0:02:11]}  Bxf1 {[%clk 0:02:17]} 13. Rxf1 {[%clk 0:02:12]}  h4 {[%clk 0:02:10]} 14. Bf2 {[%clk 0:02:12]}  c5 {[%clk 0:02:08]} 15. dxc5 {[%clk 0:02:08]}  Nxc5 {[%clk 0:02:05]} 16. c3 {[%clk 0:01:58]}  g6 {[%clk 0:02:02]} 17. Bxc5 {[%clk 0:01:54]}  Bxc5 {[%clk 0:02:02]} 18. Qb3 {[%clk 0:01:52]}  Qd7 {[%clk 0:01:47]} 19. a4 {[%clk 0:01:38]}  Ra6 {[%clk 0:01:48]} 20. Qb5 {[%clk 0:01:12]}  Be3 {[%clk 0:01:47]} 21. Ng5 {[%clk 0:00:57]}  Qxb5 {[%clk 0:01:16]} 22. axb5 {[%clk 0:00:56]}  Ra7 {[%clk 0:01:16]} 23. Ke2 {[%clk 0:00:55]}  Bb6 {[%clk 0:01:15]} 24. Ra4 {[%clk 0:00:50]}  Ke7 {[%clk 0:01:13]} 25. Rfa1 {[%clk 0:00:49]}  Rc8 {[%clk 0:00:59]} 26. Nf3 {[%clk 0:00:42]}  Rc5 {[%clk 0:00:48]} 27. Nd4 {[%clk 0:00:42]}  Rc7 {[%clk 0:00:37]} 28. Kd3 {[%clk 0:00:29]}  Ra8 {[%clk 0:00:29]} 29. Nb3 {[%clk 0:00:19]}  Rac8 {[%clk 0:00:19]} 30. Nxa5 {[%clk 0:00:20]}  Bxa5 {[%clk 0:00:20]} 31. Rxa5 {[%clk 0:00:20]}  Rc4 {[%clk 0:00:20]} 32. R5a4 {[%clk 0:00:21]}  R8c5 {[%clk 0:00:19]} 33. Rxc4 {[%clk 0:00:19]}  dxc4+ {[%clk 0:00:18]} 34. Kd4 {[%clk 0:00:17]}  Rxb5 {[%clk 0:00:18]} 35. Ra2 {[%clk 0:00:17]}  Kd7 {[%clk 0:00:11]} 36. Kxc4 {[%clk 0:00:18]}  Kc6 {[%clk 0:00:11]} 37. b4 {[%clk 0:00:17]}  g5 {[%clk 0:00:12]} 38. fxg5 {[%clk 0:00:17]}  Rxe5 {[%clk 0:00:12]} 39. Rf2 {[%clk 0:00:17]}  Rxg5 {[%clk 0:00:12]} 40. Rxf7 {[%clk 0:00:18]}  Rxg2 {[%clk 0:00:12]} 41. Rh7 {[%clk 0:00:18]}  b5+ {[%clk 0:00:12]} 42. Kb3 {[%clk 0:00:17]}  e5 {[%clk 0:00:11]} 43. Rxh4 {[%clk 0:00:18]}  Kd5 {[%clk 0:00:11]} 44. c4+ {[%clk 0:00:15]}  bxc4+ {[%clk 0:00:12]} 45. Rxc4 {[%clk 0:00:16]}  e4 {[%clk 0:00:12]} 46. Rc5+ {[%clk 0:00:15]}  Kd4 {[%clk 0:00:12]} 47. Rc8 {[%clk 0:00:13]}  e3 {[%clk 0:00:12]} 48. Rd8+ {[%clk 0:00:14]}  Ke4 {[%clk 0:00:12]} 49. Kc3 {[%clk 0:00:15]}  Kf3 {[%clk 0:00:07]} 50. Re8 {[%clk 0:00:13]}  Rg1 {[%clk 0:00:07]} 51. b5 {[%clk 0:00:12]}  e2 {[%clk 0:00:06]} 52. Kc4 {[%clk 0:00:09]}  e1=Q {[%clk 0:00:04]} 53. Rxe1 {[%clk 0:00:09]}  Rxe1 {[%clk 0:00:05]} 54. Kd5 {[%clk 0:00:08]}  Kg3 {[%clk 0:00:03]} 55. b6 {[%clk 0:00:08]}  Kxh3 {[%clk 0:00:02]} 56. Kc6 {[%clk 0:00:09]}  Rc1+ {[%clk 0:00:02]} 57. Kd7 {[%clk 0:00:09]}  Rb1 {[%clk 0:00:02]} 58. Kc7 {[%clk 0:00:10]}  Rc1+ {[%clk 0:00:02]} 59. Kd7 {[%clk 0:00:10]}  Rb1 {[%clk 0:00:02]} 60. Kc7 {[%clk 0:00:11]}  Rc1+ {[%clk 0:00:03]} 61. Kd7 {[%clk 0:00:11]} 1/2-1/2


[Site "https://www.chess.com"]

[Event "Titled Tuesday Blitz March 21 Late 2023"]
[White "Ambartsumova, Karina"]
[Black "Bilan, Danila"]
[WhiteFideId "4166299"]
[BlackFideId "24161918"]
[WhiteElo "2300"]
[BlackElo "2182"]
[Result "1-0"]
[Round "07"]
[TimeControl "180+2"]
[Date "2023.03.21"]
[WhiteClock "0:00:14"]
[BlackClock "0:00:02"]

1. e4 {[%clk 0:03:00]}  c6 {[%clk 0:02:59]} 2. Ne2 {[%clk 0:02:59]}  d5 {[%clk 0:03:00]} 3. e5 {[%clk 0:02:59]}  Bf5 {[%clk 0:02:57]} 4. Ng3 {[%clk 0:02:59]}  Bg6 {[%clk 0:02:57]} 5. h4 {[%clk 0:02:59]}  h6 {[%clk 0:02:56]} 6. h5 {[%clk 0:02:59]}  Bh7 {[%clk 0:02:56]} 7. e6 {[%clk 0:03:00]}  Nf6 {[%clk 0:02:50]} 8. d4 {[%clk 0:02:54]}  Qd6 {[%clk 0:02:42]} 9. exf7+ {[%clk 0:02:49]}  Kxf7 {[%clk 0:02:42]} 10. f4 {[%clk 0:02:43]}  Nbd7 {[%clk 0:02:32]} 11. Bd3 {[%clk 0:02:39]}  Ne4 {[%clk 0:02:26]} 12. Nxe4 {[%clk 0:02:17]}  dxe4 {[%clk 0:02:26]} 13. Bc4+ {[%clk 0:02:16]}  e6 {[%clk 0:02:24]} 14. O-O {[%clk 0:02:10]}  Ke8 {[%clk 0:01:21]} 15. Bb3 {[%clk 0:01:30]}  Nf6 {[%clk 0:01:17]} 16. c4 {[%clk 0:01:30]}  Bf5 {[%clk 0:01:13]} 17. Nc3 {[%clk 0:01:23]}  Rd8 {[%clk 0:01:11]} 18. Qe1 {[%clk 0:01:02]}  Ng4 {[%clk 0:00:48]} 19. d5 {[%clk 0:01:02]}  Qc5+ {[%clk 0:00:39]} 20. Kh1 {[%clk 0:00:56]}  e3 {[%clk 0:00:31]} 21. Rf3 {[%clk 0:00:48]}  Bd6 {[%clk 0:00:08]} 22. g3 {[%clk 0:00:22]}  Nf2+ {[%clk 0:00:03]} 23. Kg2 {[%clk 0:00:19]}  Ng4 {[%clk 0:00:03]} 24. Bxe3 {[%clk 0:00:18]}  Nxe3+ {[%clk 0:00:03]} 25. Rxe3 {[%clk 0:00:18]}  Kf7 {[%clk 0:00:02]} 26. dxe6+ {[%clk 0:00:18]}  Ke7 {[%clk 0:00:02]} 27. Rd1 {[%clk 0:00:18]}  Rhe8 {[%clk 0:00:02]} 28. a3 {[%clk 0:00:17]}  a5 {[%clk 0:00:02]} 29. Na4 {[%clk 0:00:17]}  Qa7 {[%clk 0:00:02]} 30. Qc3 {[%clk 0:00:15]}  Kf8 {[%clk 0:00:02]} 31. Ree1 {[%clk 0:00:15]}  Rxe6 {[%clk 0:00:02]} 32. c5 {[%clk 0:00:15]}  Rxe1 {[%clk 0:00:02]} 33. Rxe1 {[%clk 0:00:14]}  Be7 {[%clk 0:00:02]} 34. Qe5 {[%clk 0:00:14]} 1-0


[Site "https://www.chess.com"]

[Event "Titled Tuesday Blitz March 21 Late 2023"]
[White "Przybylski, Wojciech"]
[Black "Marjanovic, Annamaria"]
[WhiteFideId "1117599"]
[BlackFideId "750930"]
[WhiteElo "2222"]
[BlackElo "2212"]
[Result "1/2-1/2"]
[Round "07"]
[TimeControl "180+2"]
[Date "2023.03.21"]
[WhiteClock "0:00:21"]
[BlackClock "0:00:21"]

1. e4 {[%clk 0:02:53]}  e6 {[%clk 0:02:59]} 2. d4 {[%clk 0:02:52]}  d5 {[%clk 0:03:00]} 3. Nc3 {[%clk 0:02:52]}  Nf6 {[%clk 0:03:00]} 4. Bg5 {[%clk 0:02:51]}  Bb4 {[%clk 0:02:59]} 5. Ne2 {[%clk 0:02:49]}  h6 {[%clk 0:02:57]} 6. Be3 {[%clk 0:02:46]}  Nxe4 {[%clk 0:02:56]} 7. a3 {[%clk 0:02:46]}  Nxc3 {[%clk 0:02:50]} 8. bxc3 {[%clk 0:02:42]}  Bd6 {[%clk 0:02:48]} 9. g3 {[%clk 0:02:42]}  O-O {[%clk 0:02:47]} 10. Qd2 {[%clk 0:02:40]}  Nd7 {[%clk 0:02:43]} 11. Bg2 {[%clk 0:02:39]}  Nf6 {[%clk 0:02:42]} 12. O-O {[%clk 0:02:38]}  Kh7 {[%clk 0:02:36]} 13. c4 {[%clk 0:02:37]}  c6 {[%clk 0:02:34]} 14. Qd3+ {[%clk 0:02:32]}  Kh8 {[%clk 0:02:33]} 15. c5 {[%clk 0:02:31]}  Be7 {[%clk 0:02:28]} 16. a4 {[%clk 0:02:28]}  Nh7 {[%clk 0:02:19]} 17. a5 {[%clk 0:02:26]}  Bg5 {[%clk 0:02:18]} 18. f4 {[%clk 0:02:26]}  Be7 {[%clk 0:02:15]} 19. Rfb1 {[%clk 0:02:24]}  f5 {[%clk 0:02:07]} 20. Bd2 {[%clk 0:02:07]}  Nf6 {[%clk 0:02:06]} 21. Be1 {[%clk 0:02:07]}  Ne4 {[%clk 0:02:05]} 22. Rb3 {[%clk 0:02:05]}  Bf6 {[%clk 0:02:02]} 23. Rab1 {[%clk 0:02:04]}  a6 {[%clk 0:01:52]} 24. Rb6 {[%clk 0:02:01]}  Qe8 {[%clk 0:01:49]} 25. Kh1 {[%clk 0:01:56]}  Qh5 {[%clk 0:01:43]} 26. Bf3 {[%clk 0:01:53]}  Qf7 {[%clk 0:01:39]} 27. Qe3 {[%clk 0:01:47]}  g5 {[%clk 0:01:32]} 28. R6b2 {[%clk 0:01:42]}  Rg8 {[%clk 0:01:27]} 29. c3 {[%clk 0:01:29]}  Rg7 {[%clk 0:01:15]} 30. Nc1 {[%clk 0:01:25]}  Bd8 {[%clk 0:00:57]} 31. Ra2 {[%clk 0:01:22]}  Bc7 {[%clk 0:00:57]} 32. Nd3 {[%clk 0:01:21]}  Rb8 {[%clk 0:00:53]} 33. Ne5 {[%clk 0:01:21]}  Bxe5 {[%clk 0:00:53]} 34. dxe5 {[%clk 0:01:20]}  Qe7 {[%clk 0:00:42]} 35. Bxe4 {[%clk 0:01:18]}  fxe4 {[%clk 0:00:39]} 36. Bd2 {[%clk 0:01:10]}  Bd7 {[%clk 0:00:37]} 37. Qd4 {[%clk 0:01:09]}  Be8 {[%clk 0:00:35]} 38. fxg5 {[%clk 0:01:00]}  hxg5 {[%clk 0:00:36]} 39. Rf1 {[%clk 0:00:58]}  Bh5 {[%clk 0:00:29]} 40. Rf6 {[%clk 0:00:56]}  Bf3+ {[%clk 0:00:26]} 41. Kg1 {[%clk 0:00:56]}  Rf8 {[%clk 0:00:24]} 42. Rb2 {[%clk 0:00:50]}  Kg8 {[%clk 0:00:22]} 43. Be3 {[%clk 0:00:41]}  Qe8 {[%clk 0:00:22]} 44. Rf2 {[%clk 0:00:23]}  Rg6 {[%clk 0:00:20]} 45. Rxf8+ {[%clk 0:00:14]}  Qxf8 {[%clk 0:00:19]} 46. Rb2 {[%clk 0:00:14]}  Rg7 {[%clk 0:00:19]} 47. Qd2 {[%clk 0:00:13]}  Qf5 {[%clk 0:00:19]} 48. Qf2 {[%clk 0:00:11]}  Rf7 {[%clk 0:00:19]} 49. Bd4 {[%clk 0:00:10]}  Qh3 {[%clk 0:00:18]} 50. Qf1 {[%clk 0:00:08]}  Qh5 {[%clk 0:00:16]} 51. Qe1 {[%clk 0:00:04]}  Rh7 {[%clk 0:00:13]} 52. Rf2 {[%clk 0:00:04]}  Qe8 {[%clk 0:00:11]} 53. Qd2 {[%clk 0:00:03]}  Qd8 {[%clk 0:00:11]} 54. Be3 {[%clk 0:00:03]}  Rg7 {[%clk 0:00:11]} 55. h3 {[%clk 0:00:02]}  Qxa5 {[%clk 0:00:10]} 56. Bxg5 {[%clk 0:00:01]}  Qxc5 {[%clk 0:00:11]} 57. Kh2 {[%clk 0:00:01]}  Qc4 {[%clk 0:00:09]} 58. Be3 {[%clk 0:00:01]}  Rf7 {[%clk 0:00:08]} 59. Qe1 {[%clk 0:00:01]}  Qd3 {[%clk 0:00:08]} 60. Bd4 {[%clk 0:00:01]}  Bh5 {[%clk 0:00:08]} 61. g4 {[%clk 0:00:01]}  Rxf2+ {[%clk 0:00:07]} 62. Qxf2 {[%clk 0:00:02]}  Bg6 {[%clk 0:00:05]} 63. Bc5 {[%clk 0:00:02]}  Qf3 {[%clk 0:00:05]} 64. Qxf3 {[%clk 0:00:03]}  exf3 {[%clk 0:00:06]} 65. Kg3 {[%clk 0:00:03]}  Be4 {[%clk 0:00:06]} 66. h4 {[%clk 0:00:04]}  Kg7 {[%clk 0:00:05]} 67. h5 {[%clk 0:00:04]}  Kh6 {[%clk 0:00:05]} 68. Bb6 {[%clk 0:00:05]}  Kg5 {[%clk 0:00:02]} 69. Bd8+ {[%clk 0:00:05]}  Kh6 {[%clk 0:00:03]} 70. Bb6 {[%clk 0:00:05]}  Kh7 {[%clk 0:00:04]} 71. g5 {[%clk 0:00:04]}  Kg7 {[%clk 0:00:03]} 72. Bd8 {[%clk 0:00:03]}  b5 {[%clk 0:00:03]} 73. g6 {[%clk 0:00:03]}  c5 {[%clk 0:00:03]} 74. Bf6+ {[%clk 0:00:03]}  Kh6 {[%clk 0:00:03]} 75. Be7 {[%clk 0:00:04]}  Bxg6 {[%clk 0:00:02]} 76. hxg6 {[%clk 0:00:04]}  Kxg6 {[%clk 0:00:03]} 77. Bxc5 {[%clk 0:00:04]}  Kf5 {[%clk 0:00:03]} 78. Bd6 {[%clk 0:00:04]}  Ke4 {[%clk 0:00:03]} 79. Kf2 {[%clk 0:00:04]}  a5 {[%clk 0:00:03]} 80. Bc7 {[%clk 0:00:04]}  a4 {[%clk 0:00:04]} 81. Bd6 {[%clk 0:00:05]}  Kf4 {[%clk 0:00:04]} 82. Bc5 {[%clk 0:00:05]}  Kxe5 {[%clk 0:00:03]} 83. Kxf3 {[%clk 0:00:05]}  Kf5 {[%clk 0:00:02]} 84. Ke3 {[%clk 0:00:06]}  e5 {[%clk 0:00:03]} 85. Kd3 {[%clk 0:00:06]}  d4 {[%clk 0:00:03]} 86. cxd4 {[%clk 0:00:06]}  exd4 {[%clk 0:00:04]} 87. Kxd4 {[%clk 0:00:07]}  Ke6 {[%clk 0:00:05]} 88. Kc3 {[%clk 0:00:07]}  Kd7 {[%clk 0:00:06]} 89. Ba3 {[%clk 0:00:07]}  Kc6 {[%clk 0:00:07]} 90. Kb4 {[%clk 0:00:08]}  Kb6 {[%clk 0:00:08]} 91. Bb2 {[%clk 0:00:08]}  Kc6 {[%clk 0:00:08]} 92. Bd4 {[%clk 0:00:09]}  Kd5 {[%clk 0:00:08]} 93. Bb2 {[%clk 0:00:10]}  Kc6 {[%clk 0:00:08]} 94. Bc3 {[%clk 0:00:10]}  Kb6 {[%clk 0:00:08]} 95. Ka3 {[%clk 0:00:10]}  Kc5 {[%clk 0:00:09]} 96. Bb4+ {[%clk 0:00:11]}  Kc4 {[%clk 0:00:09]} 97. Be7 {[%clk 0:00:11]}  Kd5 {[%clk 0:00:10]} 98. Bf8 {[%clk 0:00:12]}  Kc4 {[%clk 0:00:10]} 99. Bb4 {[%clk 0:00:13]}  Kd3 {[%clk 0:00:10]} 100. Bf8 {[%clk 0:00:14]}  Kc2 {[%clk 0:00:11]} 101. Bb4 {[%clk 0:00:14]}  Kd3 {[%clk 0:00:11]} 102. Bf8 {[%clk 0:00:15]}  Kc4 {[%clk 0:00:12]} 103. Be7 {[%clk 0:00:16]}  Kd5 {[%clk 0:00:13]} 104. Bf8 {[%clk 0:00:17]}  Kc6 {[%clk 0:00:14]} 105. Bb4 {[%clk 0:00:17]}  Kb6 {[%clk 0:00:14]} 106. Bf8 {[%clk 0:00:18]}  Ka5 {[%clk 0:00:15]} 107. Bb4+ {[%clk 0:00:18]}  Ka6 {[%clk 0:00:16]} 108. Be1 {[%clk 0:00:19]}  Kb7 {[%clk 0:00:17]} 109. Bd2 {[%clk 0:00:20]}  Kc6 {[%clk 0:00:17]} 110. Be1 {[%clk 0:00:20]}  Kd7 {[%clk 0:00:18]} 111. Bb4 {[%clk 0:00:20]}  Ke6 {[%clk 0:00:19]} 112. Ba5 {[%clk 0:00:21]}  Kd5 {[%clk 0:00:20]} 113. Bb4 {[%clk 0:00:21]}  Kc4 {[%clk 0:00:20]} 114. Bf8 {[%clk 0:00:21]}  b4+ {[%clk 0:00:19]} 115. Bxb4 {[%clk 0:00:21]}  Kb5 {[%clk 0:00:20]} 116. Bc5 {[%clk 0:00:21]}  Kc4 {[%clk 0:00:21]} 117. Kxa4 {[%clk 0:00:21]} 1/2-1/2


[Site "https://www.chess.com"]

[Event "Titled Tuesday Blitz March 21 Late 2023"]
[White "Mortazavi, Ali"]
[Black "Rios Escobar, Adan"]
[WhiteFideId "401323"]
[BlackFideId "3403645"]
[WhiteElo "2339"]
[BlackElo "2415"]
[Result "1-0"]
[Round "07"]
[TimeControl "180+2"]
[Date "2023.03.21"]
[WhiteClock "0:00:23"]
[BlackClock "0:00:02"]

1. e4 {[%clk 0:03:00]}  c5 {[%clk 0:02:59]} 2. Nc3 {[%clk 0:03:00]}  d6 {[%clk 0:02:59]} 3. f4 {[%clk 0:03:00]}  g6 {[%clk 0:02:52]} 4. Nf3 {[%clk 0:03:01]}  Bg7 {[%clk 0:02:52]} 5. Bc4 {[%clk 0:02:39]}  Nc6 {[%clk 0:02:51]} 6. f5 {[%clk 0:02:35]}  gxf5 {[%clk 0:02:31]} 7. d3 {[%clk 0:02:35]}  e6 {[%clk 0:02:23]} 8. O-O {[%clk 0:02:33]}  fxe4 {[%clk 0:02:21]} 9. dxe4 {[%clk 0:02:32]}  Nge7 {[%clk 0:01:59]} 10. Qe1 {[%clk 0:02:29]}  Ng6 {[%clk 0:01:57]} 11. Qg3 {[%clk 0:02:25]}  O-O {[%clk 0:01:39]} 12. h4 {[%clk 0:02:12]}  Nd4 {[%clk 0:01:37]} 13. h5 {[%clk 0:02:12]}  Nxf3+ {[%clk 0:01:32]} 14. Rxf3 {[%clk 0:02:12]}  Ne5 {[%clk 0:01:26]} 15. h6 {[%clk 0:02:08]}  Nxf3+ {[%clk 0:01:25]} 16. gxf3 {[%clk 0:02:08]}  Qf6 {[%clk 0:01:22]} 17. hxg7 {[%clk 0:01:32]}  Qxg7 {[%clk 0:01:15]} 18. Bf4 {[%clk 0:01:32]}  Rd8 {[%clk 0:01:01]} 19. Qxg7+ {[%clk 0:01:20]}  Kxg7 {[%clk 0:01:02]} 20. Kf2 {[%clk 0:01:20]}  e5 {[%clk 0:00:34]} 21. Rg1+ {[%clk 0:01:18]}  Kf8 {[%clk 0:00:34]} 22. Bh6+ {[%clk 0:01:17]}  Ke7 {[%clk 0:00:27]} 23. Nd5+ {[%clk 0:00:59]}  Kd7 {[%clk 0:00:27]} 24. Bb5+ {[%clk 0:00:58]}  Ke6 {[%clk 0:00:27]} 25. Nc7+ {[%clk 0:00:57]}  Ke7 {[%clk 0:00:25]} 26. Nxa8 {[%clk 0:00:53]}  Bd7 {[%clk 0:00:23]} 27. Nc7 {[%clk 0:00:46]}  Bxb5 {[%clk 0:00:23]} 28. Nxb5 {[%clk 0:00:46]}  Ke6 {[%clk 0:00:20]} 29. Nc3 {[%clk 0:00:45]}  f5 {[%clk 0:00:20]} 30. Rg7 {[%clk 0:00:40]}  fxe4 {[%clk 0:00:20]} 31. fxe4 {[%clk 0:00:40]}  b5 {[%clk 0:00:16]} 32. Nd5 {[%clk 0:00:38]}  Re8 {[%clk 0:00:16]} 33. Rxa7 {[%clk 0:00:34]}  b4 {[%clk 0:00:14]} 34. b3 {[%clk 0:00:32]}  c4 {[%clk 0:00:14]} 35. Ke2 {[%clk 0:00:24]}  cxb3 {[%clk 0:00:14]} 36. axb3 {[%clk 0:00:23]}  Rc8 {[%clk 0:00:02]} 37. Re7# {[%clk 0:00:23]} 1-0


[Site "https://www.chess.com"]

[Event "Titled Tuesday Blitz March 21 Late 2023"]
[White "Goncalves, Davi Sulzbacher"]
[Black "Hoffmann, Asa"]
[WhiteFideId "2154510"]
[BlackFideId "2001470"]
[WhiteElo "2182"]
[BlackElo "2117"]
[Result "0-1"]
[Round "07"]
[TimeControl "180+2"]
[Date "2023.03.21"]
[WhiteClock "0:00:03"]
[BlackClock "0:00:04"]

1. d4 {[%clk 0:03:00]}  Nf6 {[%clk 0:02:57]} 2. c4 {[%clk 0:03:01]}  c5 {[%clk 0:02:56]} 3. d5 {[%clk 0:03:01]}  e5 {[%clk 0:02:56]} 4. Nc3 {[%clk 0:03:00]}  d6 {[%clk 0:02:56]} 5. g3 {[%clk 0:02:58]}  Be7 {[%clk 0:02:56]} 6. Bg2 {[%clk 0:02:58]}  O-O {[%clk 0:02:56]} 7. Nf3 {[%clk 0:02:55]}  Ne8 {[%clk 0:02:55]} 8. O-O {[%clk 0:02:54]}  f5 {[%clk 0:02:55]} 9. e4 {[%clk 0:02:53]}  Nf6 {[%clk 0:02:49]} 10. exf5 {[%clk 0:02:51]}  Bxf5 {[%clk 0:02:49]} 11. Ng5 {[%clk 0:02:52]}  Qd7 {[%clk 0:02:47]} 12. Be3 {[%clk 0:02:31]}  Na6 {[%clk 0:02:46]} 13. a3 {[%clk 0:02:18]}  Nc7 {[%clk 0:02:46]} 14. b4 {[%clk 0:02:08]}  Ng4 {[%clk 0:02:34]} 15. Bd2 {[%clk 0:01:52]}  Bxg5 {[%clk 0:02:09]} 16. Bxg5 {[%clk 0:01:53]}  h6 {[%clk 0:02:09]} 17. Bd2 {[%clk 0:01:49]}  b6 {[%clk 0:02:08]} 18. Be4 {[%clk 0:01:45]}  Bxe4 {[%clk 0:02:05]} 19. Nxe4 {[%clk 0:01:46]}  Nf6 {[%clk 0:02:05]} 20. Qe2 {[%clk 0:01:35]}  Nxe4 {[%clk 0:02:00]} 21. Qxe4 {[%clk 0:01:34]}  Qh3 {[%clk 0:01:59]} 22. bxc5 {[%clk 0:01:30]}  bxc5 {[%clk 0:01:58]} 23. Rab1 {[%clk 0:01:30]}  Ne8 {[%clk 0:01:57]} 24. Rb7 {[%clk 0:01:27]}  Qh5 {[%clk 0:01:49]} 25. g4 {[%clk 0:01:14]}  Nf6 {[%clk 0:01:43]} 26. gxh5 {[%clk 0:00:56]}  Nxe4 {[%clk 0:01:42]} 27. Be3 {[%clk 0:00:56]}  Rf7 {[%clk 0:01:35]} 28. Rfb1 {[%clk 0:00:56]}  Raf8 {[%clk 0:01:29]} 29. Rxf7 {[%clk 0:00:55]}  Rxf7 {[%clk 0:01:28]} 30. Rb8+ {[%clk 0:00:56]}  Kh7 {[%clk 0:01:28]} 31. Ra8 {[%clk 0:00:52]}  Rd7 {[%clk 0:01:28]} 32. Kf1 {[%clk 0:00:49]}  Nf6 {[%clk 0:01:27]} 33. Ke2 {[%clk 0:00:31]}  Nxh5 {[%clk 0:01:27]} 34. Kf3 {[%clk 0:00:30]}  Kg6 {[%clk 0:01:24]} 35. a4 {[%clk 0:00:29]}  Kf5 {[%clk 0:01:20]} 36. a5 {[%clk 0:00:28]}  g5 {[%clk 0:01:18]} 37. a6 {[%clk 0:00:26]}  Nf6 {[%clk 0:01:06]} 38. Rh8 {[%clk 0:00:18]}  h5 {[%clk 0:01:04]} 39. Rf8 {[%clk 0:00:18]}  e4+ {[%clk 0:00:59]} 40. Kg2 {[%clk 0:00:17]}  Kg6 {[%clk 0:00:57]} 41. Rb8 {[%clk 0:00:16]}  h4 {[%clk 0:00:53]} 42. h3 {[%clk 0:00:16]}  Kf5 {[%clk 0:00:48]} 43. Bd2 {[%clk 0:00:16]}  g4 {[%clk 0:00:47]} 44. hxg4+ {[%clk 0:00:15]}  Nxg4 {[%clk 0:00:47]} 45. Rb7 {[%clk 0:00:15]}  Ne5 {[%clk 0:00:30]} 46. Kh3 {[%clk 0:00:05]}  Rxb7 {[%clk 0:00:13]} 47. axb7 {[%clk 0:00:06]}  Nd7 {[%clk 0:00:13]} 48. Ba5 {[%clk 0:00:05]}  Kf4 {[%clk 0:00:10]} 49. Kg2 {[%clk 0:00:05]}  h3+ {[%clk 0:00:09]} 50. Kg1 {[%clk 0:00:05]}  Kf3 {[%clk 0:00:08]} 51. Bc7 {[%clk 0:00:04]}  h2+ {[%clk 0:00:07]} 52. Kxh2 {[%clk 0:00:04]}  Kxf2 {[%clk 0:00:07]} 53. Bxd6 {[%clk 0:00:04]}  e3 {[%clk 0:00:08]} 54. Bxc5 {[%clk 0:00:03]}  Kf3 {[%clk 0:00:04]} 0-1


[Site "https://www.chess.com"]

[Event "Titled Tuesday Blitz March 21 Late 2023"]
[White "drdaro"]
[Black "Papayan, Oleg"]
[BlackFideId "4193911"]
[WhiteElo "2401"]
[BlackElo "2153"]
[Result "1-0"]
[Round "07"]
[TimeControl "180+2"]
[Date "2023.03.21"]
[WhiteClock "0:00:13"]
[BlackClock "0:00:09"]

1. d3 {[%clk 0:03:00]}  d5 {[%clk 0:02:58]} 2. e3 {[%clk 0:02:56]}  e5 {[%clk 0:02:57]} 3. d4 {[%clk 0:02:56]}  Nc6 {[%clk 0:02:26]} 4. Nf3 {[%clk 0:02:54]}  e4 {[%clk 0:02:22]} 5. Nfd2 {[%clk 0:02:54]}  Nf6 {[%clk 0:02:08]} 6. c4 {[%clk 0:02:54]}  Ne7 {[%clk 0:02:08]} 7. b4 {[%clk 0:02:50]}  c6 {[%clk 0:02:04]} 8. Nc3 {[%clk 0:02:48]}  Ng6 {[%clk 0:01:52]} 9. b5 {[%clk 0:02:48]}  Bb4 {[%clk 0:01:41]} 10. Qb3 {[%clk 0:02:48]}  Bxc3 {[%clk 0:01:40]} 11. Qxc3 {[%clk 0:02:48]}  O-O {[%clk 0:01:40]} 12. Ba3 {[%clk 0:02:39]}  Re8 {[%clk 0:01:40]} 13. Be2 {[%clk 0:02:33]}  Bg4 {[%clk 0:01:34]} 14. Bxg4 {[%clk 0:02:17]}  Nxg4 {[%clk 0:01:35]} 15. h3 {[%clk 0:02:18]}  Nf6 {[%clk 0:01:19]} 16. O-O-O {[%clk 0:02:13]}  cxb5 {[%clk 0:01:11]} 17. c5 {[%clk 0:02:02]}  a5 {[%clk 0:01:12]} 18. Bb2 {[%clk 0:01:52]}  b4 {[%clk 0:01:04]} 19. Qc2 {[%clk 0:01:48]}  a4 {[%clk 0:00:58]} 20. Kb1 {[%clk 0:01:49]}  Qa5 {[%clk 0:00:49]} 21. Qc1 {[%clk 0:01:40]}  Rec8 {[%clk 0:00:45]} 22. f3 {[%clk 0:01:38]}  b6 {[%clk 0:00:27]} 23. Nf1 {[%clk 0:00:41]}  bxc5 {[%clk 0:00:27]} 24. dxc5 {[%clk 0:00:42]}  Rxc5 {[%clk 0:00:27]} 25. Qd2 {[%clk 0:00:42]}  Rac8 {[%clk 0:00:22]} 26. Bd4 {[%clk 0:00:41]}  Rc4 {[%clk 0:00:15]} 27. Ng3 {[%clk 0:00:41]}  Qb5 {[%clk 0:00:14]} 28. Nf5 {[%clk 0:00:38]}  Qc6 {[%clk 0:00:06]} 29. Rc1 {[%clk 0:00:37]}  Qd7 {[%clk 0:00:05]} 30. g4 {[%clk 0:00:33]}  exf3 {[%clk 0:00:04]} 31. Nxg7 {[%clk 0:00:21]}  Kxg7 {[%clk 0:00:03]} 32. g5 {[%clk 0:00:22]}  Kg8 {[%clk 0:00:02]} 33. Bxf6 {[%clk 0:00:21]}  Qe6 {[%clk 0:00:01]} 34. h4 {[%clk 0:00:20]}  Qe4+ {[%clk 0:00:01]} 35. Ka1 {[%clk 0:00:20]}  b3 {[%clk 0:00:02]} 36. h5 {[%clk 0:00:17]}  Rxc1+ {[%clk 0:00:01]} 37. Rxc1 {[%clk 0:00:16]}  Rxc1+ {[%clk 0:00:01]} 38. Qxc1 {[%clk 0:00:17]}  Qe7 {[%clk 0:00:01]} 39. Bxe7 {[%clk 0:00:16]}  Nxe7 {[%clk 0:00:02]} 40. Qc5 {[%clk 0:00:15]}  Kf8 {[%clk 0:00:01]} 41. axb3 {[%clk 0:00:14]}  axb3 {[%clk 0:00:02]} 42. Qd6 {[%clk 0:00:12]}  Ke8 {[%clk 0:00:02]} 43. Qf6 {[%clk 0:00:10]}  Kd7 {[%clk 0:00:01]} 44. Qxf3 {[%clk 0:00:11]}  Ke6 {[%clk 0:00:01]} 45. Qf6+ {[%clk 0:00:11]}  Kd7 {[%clk 0:00:02]} 46. Qxf7 {[%clk 0:00:12]}  Kd6 {[%clk 0:00:02]} 47. Qxh7 {[%clk 0:00:11]}  Nc6 {[%clk 0:00:03]} 48. Qg6+ {[%clk 0:00:11]}  Kc5 {[%clk 0:00:03]} 49. h6 {[%clk 0:00:12]}  Nb4 {[%clk 0:00:04]} 50. h7 {[%clk 0:00:11]}  Nc2+ {[%clk 0:00:05]} 51. Qxc2+ {[%clk 0:00:11]}  bxc2 {[%clk 0:00:05]} 52. Kb2 {[%clk 0:00:12]}  d4 {[%clk 0:00:05]} 53. exd4+ {[%clk 0:00:12]}  Kxd4 {[%clk 0:00:06]} 54. h8=Q+ {[%clk 0:00:13]}  Ke4 {[%clk 0:00:07]} 55. Qf6 {[%clk 0:00:13]}  Ke3 {[%clk 0:00:07]} 56. Kxc2 {[%clk 0:00:13]}  Ke2 {[%clk 0:00:07]} 57. Qe5+ {[%clk 0:00:13]}  Kf1 {[%clk 0:00:07]} 58. Qh2 {[%clk 0:00:12]}  Ke1 {[%clk 0:00:07]} 59. Kd3 {[%clk 0:00:13]}  Kf1 {[%clk 0:00:08]} 60. Ke3 {[%clk 0:00:13]}  Ke1 {[%clk 0:00:09]} 61. Qe2# {[%clk 0:00:13]} 1-0


[Site "https://www.chess.com"]